bitfinex-derivatives/quotes_ETHF0:USTF0_20241104
["timestamp","ask_amount","ask_price","bid_price","bid_amount"]
[1730715700593,0.40479,2472.3,2472.1,0.4048]
[1730715700793,4.21965,2472.6,2472.1,0.4048]
[1730715701293,0.40475,2472.5,2472.2,0.40479]
[1730715701488,4.21965,2472.6,2472.2,0.40479]
[1730715701693,0.40477,2472.4,2472.3,0.40477]
[1730715701895,3.2078,2472.6,2472.2,0.40478]
[1730715701896,0.40478,2472.3,2472.2,0.40478]
[1730715702102,0.40478,2472.4,2472.3,0.40478]
[1730715702397,0.40478,2472.4,2472.0,2.31047]
[1730715702398,3.2078,2472.6,2472.1,1.01204]
[1730715702606,3.2078,2472.6,2472.0,1.2984]
[1730715702607,3.2078,2472.6,2472.5,0.40475]
[1730715702800,0.40471,2472.8,2472.3,1.01196]
[1730715703098,3.61252,2472.7,2472.6,0.40472]
[1730715703402,44.41252,2472.7,2472.6,0.40472]
[1730715703699,48.0518,2472.7,2472.0,5.11842482]
[1730715703895,0.40479,2472.3,2472.2,0.40479]
[1730715704398,0.40481,2472.1,2472.0,4.88304482]
[1730715704602,1.3476,2472.3,2471.8,1.093]
[1730715704791,2.35957,2472.3,2471.8,1.093]
[1730715704996,1.3476,2472.3,2471.8,1.093]
[1730715705199,3.2078,2472.1,2471.7,3.15872482]
[1730715705395,3.2078,2472.1,2471.7,3.56359482]
[1730715705396,4.21985,2472.1,2471.7,3.56359482]
[1730715705600,0.40486,2471.9,2471.7,3.56359482]
[1730715705797,4.21985,2472.1,2471.6,1.49789]
[1730715705999,0.40487,2471.8,2471.6,1.49789]
[1730715706299,0.40487,2471.8,2471.2,1.01237]
[1730715706300,0.40493,2471.4,2471.2,3.56367482]
[1730715706505,3.844,2471.7,2471.2,3.15872482]
[1730715706700,0.6679,2471.6,2471.2,3.15872482]
[1730715706899,0.6679,2471.6,2471.0,1.7498]
[1730715706900,0.6679,2471.6,2471.0,3.81552482]
[1730715707201,0.6679,2471.6,2470.9,1.066]
[1730715707202,0.40498,2471.1,2470.9,1.066]
[1730715707395,4.22013,2471.4,2471.1,0.40497]
[1730715707396,0.40497,2471.2,2471.1,0.40497]
[1730715707597,0.40497,2471.2,2471.0,0.40498]
[1730715707809,0.40497,2471.2,2471.1,0.40498]
[1730715708201,0.6306,2471.3,2471.1,0.40498]
[1730715708400,0.40499,2471.1,2470.9,1.066]
[1730715708597,0.40499,2471.1,2470.5,14.33949]
[1730715708598,40.8,2471.0,2470.5,3.2078]
[1730715708997,0.6679,2470.9,2470.5,3.2078]
[1730715709197,1.07292,2470.9,2470.7,0.40504]
[1730715709700,1.07292,2470.9,2470.5,3.2078]
[1730715709701,0.6679,2470.9,2470.5,3.2078]
[1730715710104,1.07292,2470.9,2470.7,0.40504]
[1730715710994,0.6679,2470.9,2470.5,3.2078]
[1730715711202,0.40503,2470.8,2470.6,0.40506]
[1730715711499,1.07291,2470.9,2470.8,0.40503]
[1730715711804,1.07291,2470.9,2470.5,3.2078]
[1730715712004,1.07291,2470.9,2470.7,0.40503]
[1730715712205,0.40504,2470.8,2470.6,0.40505]
[1730715712503,0.6679,2470.9,2470.8,0.40503]
[1730715712504,1.07291,2470.9,2470.8,0.40503]
[1730715712808,1.07291,2470.9,2470.7,0.40503]
[1730715713006,0.6679,2470.9,2470.5,3.2078]
[1730715713505,3.2078,2470.8,2470.3,0.661]
[1730715713709,3.2078,2470.5,2470.3,0.661]
[1730715713904,0.40508,2470.5,2470.3,1.0661]
[1730715714302,3.8863,2470.7,2470.3,0.661]
[1730715714500,0.40506,2470.6,2470.4,0.40508]
[1730715714700,4.29135,2470.7,2470.5,0.40507]
[1730715714901,3.8863,2470.7,2470.6,0.40506]
[1730715715299,3.2078,2470.7,2470.6,0.40506]
[1730715716011,3.61284,2470.7,2470.6,0.40506]
[1730715716306,3.2078,2470.7,2470.6,0.40506]
[1730715716706,44.6473,2471.0,2470.4,1.65283]
[1730715717010,0.40502,2470.9,2470.8,0.40502]
[1730715717306,44.0078,2471.0,2470.5,1.01269]
[1730715717504,44.0078,2471.0,2470.4,1.65283]
[1730715717702,0.40503,2470.9,2470.8,0.40502]
[1730715718102,0.40503,2470.9,2470.5,1.01269]
[1730715718103,4.0472,2470.9,2470.5,1.01269]
[1730715718307,44.0078,2471.0,2470.4,0.6401]
[1730715718611,44.0078,2471.0,2470.6,0.40505]
[1730715718612,0.40505,2470.7,2470.6,0.40505]
[1730715718907,0.40503,2470.8,2470.7,0.40503]
[1730715719102,44.0078,2471.0,2470.4,1.65283]
[1730715719304,0.40505,2470.7,2470.6,0.40505]
[1730715720100,0.40503,2470.8,2470.7,0.40503]
[1730715720307,44.0078,2471.0,2470.4,1.65283]
[1730715720707,0.40506,2470.7,2470.6,0.40505]
[1730715721112,3.2078,2470.7,2470.3,0.661]
[1730715721810,3.2078,2471.0,2470.9,0.40501]
[1730715722109,0.6395,2471.1,2471.0,0.40499]
[1730715722310,0.6395,2471.1,2470.7,0.6461]
[1730715722514,0.40504,2470.8,2470.7,0.40504]
[1730715722825,4.22029,2471.0,2470.5,3.2078]
[1730715723113,0.40509,2470.4,2470.3,0.661]
[1730715723502,0.40509,2470.4,2470.3,1.06611]
[1730715723706,1.2899,2470.6,2470.3,0.661]
[1730715723902,1.69497,2470.6,2470.5,0.40507]
[1730715724116,1.2899,2470.6,2470.3,0.661]
[1730715724408,1.2899,2470.6,2470.5,0.40507]
[1730715724409,1.69497,2470.6,2470.5,0.40507]
[1730715724609,1.2899,2470.6,2470.5,0.40507]
[1730715724810,0.6622,2470.6,2470.5,0.40507]
[1730715725110,1.06726,2470.6,2470.5,0.40507]
[1730715725506,0.6622,2470.6,2470.5,0.40507]
[1730715726007,1.06726,2470.6,2470.5,0.40507]
[1730715726312,1.06726,2470.6,2470.3,0.661]
[1730715726313,3.2078,2470.7,2470.3,1.67377]
[1730715726814,3.2078,2470.7,2470.6,0.40506]
[1730715727402,3.2078,2471.1,2471.0,0.40499]
[1730715727819,3.2078,2471.1,2470.9,0.6479]
[1730715728119,3.61278,2471.1,2471.0,0.40499]
[1730715728808,3.61278,2471.1,2470.9,1.0529]
[1730715728809,0.40499,2471.0,2470.9,1.0529]
[1730715729013,3.2078,2471.1,2470.9,1.0529]
[1730715729207,0.40499,2471.0,2470.9,1.0529]
[1730715729407,3.2078,2471.1,2470.9,0.6479]
[1730715729611,3.61278,2471.1,2471.0,0.40499]
[1730715729809,40.8,2471.2,2471.1,0.40498]
[1730715730011,0.6572,2471.6,2471.1,3.16092429]
[1730715730313,0.40494,2471.3,2471.2,0.40495]
[1730715730502,0.40493,2471.4,2471.3,0.40493]
[1730715730706,40.8,2471.5,2471.4,0.40493]
[1730715730707,41.20492,2471.5,2471.4,0.40493]
[1730715730908,40.8,2471.5,2471.3,0.40493]
[1730715731110,40.8,2471.5,2471.1,3.16092429]
[1730715731302,41.20492,2471.5,2471.4,0.40493]
[1730715731713,0.40493,2471.4,2471.3,0.40494]
[1730715732221,40.8,2471.5,2471.4,0.40493]
[1730715732222,41.20492,2471.5,2471.4,0.40493]
[1730715732518,0.40493,2471.4,2471.3,0.40494]
[1730715732814,41.20492,2471.5,2471.4,0.40493]
[1730715733009,40.8,2471.5,2471.4,0.40493]
[1730715733414,0.40493,2471.4,2471.3,0.40494]
[1730715733716,40.8,2471.5,2471.2,0.631]
[1730715733914,40.8,2471.5,2471.4,0.40493]
[1730715734116,0.40493,2471.4,2471.3,0.40494]
[1730715734303,0.40493,2471.4,2471.2,0.631]
[1730715734304,41.20492,2471.5,2471.4,0.40493]
[1730715734711,40.8,2471.5,2471.4,0.40493]
[1730715734907,40.8,2471.5,2471.2,0.631]
[1730715735328,41.20492,2471.5,2471.4,0.40493]
[1730715735618,41.20492,2471.5,2471.2,0.631]
[1730715735619,40.8,2471.5,2471.2,0.631]
[1730715735917,40.8,2471.5,2471.4,0.40493]
[1730715736113,41.20491,2471.5,2471.4,0.40493]
[1730715737020,41.20491,2471.5,2471.2,0.631]
[1730715737410,41.20491,2471.5,2471.4,0.40493]
[1730715739313,40.8,2471.5,2471.0,3.8511]
[1730715739514,3.2078,2471.2,2471.1,0.40498]
[1730715739720,3.2078,2471.2,2470.9,1.0529]
[1730715739917,3.2078,2471.2,2471.0,0.40499]
[1730715739918,1.06819,2471.1,2471.0,0.40499]
[1730715741716,0.6632,2471.1,2471.0,0.40499]
[1730715741915,0.6784,2471.4,2471.3,0.40494]
[1730715741916,1.74654,2471.4,2471.3,0.40494]
[1730715742231,1.74654,2471.4,2471.0,1.01249]
[1730715742232,1.3416,2471.4,2471.0,1.01249]
[1730715742425,0.40495,2471.3,2471.2,0.40494]
[1730715742712,1.74653,2471.4,2471.3,0.40494]
[1730715743510,0.40498,2471.2,2471.1,0.40496]
[1730715743817,0.40504,2470.8,2470.7,0.40503]
[1730715744309,3.8847,2470.9,2470.5,1.01269]
[1730715744624,4.28972,2470.9,2470.8,0.40503]
[1730715744817,8.33692,2470.9,2470.8,0.40503]
[1730715745316,4.28971,2470.9,2470.8,0.40503]
[1730715745923,0.40503,2470.8,2470.7,0.40503]
[1730715746221,3.8847,2470.9,2470.3,6.68474]
[1730715746522,0.40504,2470.8,2470.7,0.40504]
[1730715747119,0.40505,2470.7,2470.6,0.40505]
[1730715747425,1.73512,2470.9,2470.8,0.40503]
[1730715747615,1.73512,2470.9,2470.7,0.40504]
[1730715747616,0.40504,2470.8,2470.7,0.40504]
[1730715748015,0.40504,2470.8,2470.3,5.672]
[1730715748016,1.41765,2470.7,2470.3,4.95909]
[1730715748212,0.40509,2470.5,2470.4,0.40509]
[1730715748423,1.01261,2470.7,2470.3,3.9035]
[1730715748424,0.40506,2470.7,2470.5,0.40506]
[1730715748718,2.34263,2470.9,2470.5,0.40507]
[1730715748719,40.8,2470.6,2470.5,0.40507]
[1730715749219,3.2078,2471.0,2470.5,4.048]
[1730715749418,3.2078,2471.0,2470.9,0.40501]
[1730715749818,3.2078,2471.0,2470.9,0.405]
[1730715749819,0.405,2471.0,2470.9,0.405]
[1730715750016,41.4739,2471.1,2471.0,0.40499]
[1730715750017,41.87888,2471.1,2471.0,0.40499]
[1730715750817,41.87888,2471.1,2470.7,1.05999006]
[1730715751021,0.405,2471.0,2470.9,0.405]
[1730715751322,3.6128,2471.0,2470.9,0.405]
[1730715751522,0.40505,2470.7,2470.6,0.40505]
[1730715751723,0.40506,2470.6,2470.5,0.40506]
[1730715751919,1.03666,2470.6,2470.5,0.97614518]
[1730715752317,1.03666,2470.6,2470.5,0.97621569]
[1730715752719,0.6316,2470.6,2470.5,0.97621569]
[1730715753727,0.6705,2470.8,2470.4,0.6666]
[1730715753929,0.6705,2470.8,2470.7,0.40504]
[1730715754523,0.6316,2470.9,2470.5,1.01268]
[1730715754731,0.6316,2470.9,2470.8,0.40503]
[1730715755420,40.8,2471.1,2470.8,0.40503]
[1730715755730,40.8,2471.1,2471.0,0.40499]
[1730715756028,41.20498,2471.1,2471.0,0.40499]
[1730715756423,40.8,2471.1,2470.9,1.3411]
[1730715756626,0.40499,2471.0,2470.9,1.74609]
[1730715756822,40.8,2471.1,2471.0,0.40499]
[1730715757519,3.2078,2471.9,2471.3,1.01237]
[1730715757727,4.21996,2471.9,2471.5,0.40491]
[1730715758024,0.40488,2471.7,2471.6,0.40488]
[1730715758226,40.8,2471.8,2471.4,1.3837]
[1730715758426,40.8,2471.8,2471.7,0.40488]
[1730715758732,40.8,2471.8,2471.7,0.97611581]
[1730715758928,40.8,2471.8,2471.7,5.02171581]
[1730715761030,40.8,2471.8,2471.7,5.02135535]
[1730715761229,40.8,2471.8,2471.7,4.45048]
[1730715761728,40.8,2471.8,2471.7,7.61140429]
[1730715763930,40.8,2471.8,2471.7,3.56580429]
[1730715764534,40.8,2471.8,2471.7,7.61140429]
[1730715764726,40.8,2471.8,2471.7,3.56580429]
[1730715764927,40.8,2471.8,2471.7,7.61140429]
[1730715765426,40.8,2471.8,2471.7,3.56580429]
[1730715767733,40.8,2471.8,2471.7,0.40488]
[1730715773640,40.8,2471.8,2471.5,3.16092429]
[1730715773840,0.4049,2471.6,2471.5,0.40491]
[1730715774039,0.4049,2471.6,2471.4,1.09531]
[1730715774341,0.4049,2471.6,2471.0,1.04000311]
[1730715774342,0.40494,2471.4,2471.0,1.04000311]
[1730715774644,0.40494,2471.4,2471.2,0.40495]
[1730715775144,5.2014,2471.5,2471.2,0.40495]
[1730715775145,40.8,2471.3,2471.2,0.40495]
[1730715776440,40.8,2471.3,2471.2,3.56587429]
[1730715776642,1.3185,2471.5,2471.4,0.40493]
[1730715777033,0.6751,2471.9,2471.4,0.40493]
[1730715777243,0.6751,2471.9,2471.5,4.85851429]
[1730715777244,0.6273,2471.9,2471.5,4.85851429]
[1730715777447,0.6273,2471.9,2471.8,0.40486]
[1730715777845,41.4273,2471.9,2471.8,0.40486]
[1730715780744,3.61261,2472.1,2472.0,0.40483]
[1730715781151,44.41261,2472.1,2472.0,0.40483]
[1730715781450,44.0078,2472.1,2472.0,0.40483]
[1730715782247,44.41261,2472.1,2472.0,0.40483]
[1730715782441,44.0078,2472.1,2471.8,3.16092429]
[1730715782644,44.41262,2472.1,2472.0,0.40483]
[1730715782846,44.0078,2472.1,2472.0,0.40483]
[1730715783043,40.8,2472.1,2472.0,0.40483]
[1730715783244,40.8,2472.1,2471.8,3.16092429]
[1730715783448,41.20482,2472.1,2472.0,0.40483]
[1730715783749,0.40483,2472.0,2471.9,0.40483]
[1730715783953,1.01208,2472.0,2471.5,1.3284]
[1730715784151,0.40486,2471.8,2471.5,0.6853]
[1730715784349,0.40486,2471.8,2471.7,0.40488]
[1730715784552,0.4049,2471.6,2471.4,3.16092429]
[1730715784746,4.21997,2471.8,2471.4,3.56584429]
[1730715784952,4.21997,2471.8,2471.2,0.6534]
[1730715785151,0.40495,2471.3,2471.2,0.40496]
[1730715785453,1.01224,2471.6,2471.1,3.16092429]
[1730715785651,0.40495,2471.3,2471.2,0.40496]
[1730715785855,0.40497,2471.2,2471.1,0.40497]
[1730715786054,0.655,2471.2,2470.7,3.16092429]
[1730715786250,0.655,2471.2,2470.5,1.04000311]
[1730715786251,4.5135,2471.1,2470.5,3.16092429]
[1730715786456,0.40508,2470.5,2470.3,0.4051]
[1730715786756,0.40513,2470.2,2469.9,4.65296311]
[1730715786946,41.455,2470.4,2469.8,3.16092429]
[1730715787148,42.5375,2470.4,2470.2,0.40512]
[1730715787348,42.5375,2470.4,2470.0,3.16092429]
[1730715787349,42.1324,2470.4,2470.0,3.16092429]
[1730715787556,42.5375,2470.4,2470.2,0.40512]
[1730715787746,42.1324,2470.4,2470.0,3.16092429]
[1730715787951,0.40513,2470.2,2470.0,3.56608429]
[1730715788158,0.40514,2470.2,2470.0,3.16092429]
[1730715788357,42.1324,2470.4,2469.9,3.2078]
[1730715788554,0.40513,2470.2,2470.0,0.40516]
[1730715789556,0.40512,2470.3,2470.0,0.40514]
[1730715789756,43.54948186,2470.4,2470.0,3.16092429]
[1730715789962,43.54948186,2470.4,2470.2,0.40512]
[1730715790154,0.40512,2470.3,2470.1,0.40513]
[1730715790465,0.40513,2470.2,2469.9,3.2078]
[1730715790650,0.40516,2470.0,2469.9,3.2078]
[1730715790853,3.2078,2470.2,2469.8,3.16092429]
[1730715791147,3.2078,2470.2,2469.6,0.6763]
[1730715791148,4.22065,2470.2,2469.6,1.08152]
[1730715791359,3.2078,2470.2,2469.6,0.6763]
[1730715791554,3.2078,2470.2,2469.8,0.40518]
[1730715791555,0.40516,2470.0,2469.8,0.40518]
[1730715791752,0.40516,2470.0,2469.8,3.56610429]
[1730715791949,3.2078,2470.2,2469.8,3.16092429]
[1730715792150,0.40517,2469.9,2469.6,1.08151]
[1730715792361,0.40517,2470.0,2469.7,0.40519]
[1730715792550,4.22064,2470.2,2469.5,3.16092429]
[1730715792753,4.22064,2470.2,2469.7,0.40521]
[1730715792754,0.40518,2469.9,2469.7,0.40521]
[1730715793365,0.40517,2470.0,2469.5,3.16092429]
[1730715793759,3.2078,2470.2,2469.5,3.16092429]
[1730715793967,0.40514,2470.1,2469.5,4.17401429]
[1730715794258,0.40514,2470.1,2469.9,0.40517]
[1730715795157,0.40514,2470.1,2469.5,4.17401429]
[1730715795664,0.40514,2470.1,2469.9,0.40517]
[1730715795665,0.40515,2470.1,2469.9,0.40517]
[1730715796358,3.61293,2470.2,2470.0,0.40515]
[1730715796559,0.40515,2470.1,2469.9,0.40516]
[1730715796961,0.40515,2470.1,2470.0,0.40516]
[1730715797158,3.2078,2470.2,2470.1,0.40514]
[1730715797362,3.2078,2470.2,2470.0,0.40515]
[1730715797363,3.61294,2470.2,2470.0,0.40515]
[1730715797562,3.61294,2470.2,2470.1,0.40514]
[1730715797957,3.2078,2470.2,2470.1,0.40514]
[1730715798158,3.61292,2470.2,2470.1,0.40514]
[1730715798358,3.2078,2470.2,2470.1,0.40514]
[1730715798663,3.61292,2470.2,2470.1,0.40514]
[1730715799065,3.2078,2470.2,2470.1,0.40514]
[1730715799458,3.61292,2470.2,2470.1,0.40514]
[1730715799655,3.2078,2470.2,2470.1,0.40514]
[1730715800163,3.61292,2470.2,2470.1,0.40514]
[1730715800364,3.2078,2470.2,2470.1,0.40514]
[1730715800862,3.2078,2470.2,2469.8,0.6918]
[1730715801061,0.40516,2470.1,2470.0,0.40515]
[1730715801363,3.61294,2470.2,2470.1,0.40514]
[1730715801764,7.66094,2470.2,2470.1,0.40514]
[1730715801958,3.2078,2470.2,2470.1,0.40514]
[1730715802263,42.21709186,2470.4,2470.3,0.40511]
[1730715802659,41.81198186,2470.4,2470.3,0.40511]
[1730715805373,42.21707186,2470.4,2470.3,0.40511]
[1730715805867,41.81198186,2470.4,2470.3,0.40511]
[1730715806960,41.81198186,2470.4,2470.3,1.06591]
[1730715807359,1.01198186,2470.4,2470.3,8.32171]
[1730715807568,1.01198186,2470.4,2470.3,8.98521]
[1730715808061,1.01198186,2470.4,2470.3,4.93721]
[1730715808459,41.81198186,2470.4,2470.3,4.93721]
[1730715808960,41.81198186,2470.4,2470.3,3.2078]
[1730715809165,42.21707186,2470.4,2470.3,3.2078]
[1730715809369,42.21707186,2470.4,2470.2,0.683]
[1730715809570,41.81198186,2470.4,2470.3,0.40511]
[1730715810669,41.81198186,2470.4,2470.3,4.45311]
[1730715810870,41.81198186,2470.4,2470.3,0.40511]
[1730715811059,41.81198186,2470.4,2470.3,4.45311]
[1730715811366,41.81198186,2470.4,2470.3,0.40511]
[1730715814071,41.81198186,2470.4,2470.2,0.683]
[1730715814269,0.40511,2470.3,2470.2,0.683]
[1730715814467,41.81198186,2470.4,2470.2,1.08812]
[1730715814663,0.40511,2470.3,2470.2,1.08812]
[1730715815063,42.21708186,2470.4,2470.2,0.683]
[1730715815262,42.21708186,2470.4,2470.2,1.08811]
[1730715815758,41.81198186,2470.4,2470.3,0.40511]
[1730715817382,42.21707186,2470.4,2470.3,0.40511]
[1730715818876,41.81198186,2470.4,2470.3,0.40511]
[1730715819879,1.01198186,2470.4,2470.3,0.40511]
[1730715821671,1.01198186,2470.4,2470.3,7.61403429]
[1730715821874,1.01198186,2470.4,2470.3,10.82183429]
[1730715823984,1.01198186,2470.4,2470.3,6.77383429]
[1730715824484,1.01198186,2470.4,2470.3,7.34903227]
[1730715824674,1.01198186,2470.4,2470.3,4.18810798]
[1730715824881,1.01198186,2470.4,2470.3,3.61291]
[1730715825285,1.01198186,2470.4,2470.3,4.18830221]
[1730715825481,1.01198186,2470.4,2470.3,0.98050221]
[1730715826082,1.01198186,2470.4,2470.3,0.40511]
[1730715826581,1.01198186,2470.4,2470.3,0.98059552]
[1730715827484,1.01198186,2470.4,2470.3,0.40511]
[1730715827680,1.01198186,2470.4,2470.3,0.9810171]
[1730715828783,1.01198186,2470.4,2470.3,0.9814502]
[1730715829483,1.71898186,2470.4,2470.3,1.90455318]
[1730715830486,1.71898186,2470.4,2470.3,2.94455629]
[1730715831393,1.71898186,2470.4,2470.3,3.05998044]
[1730715831690,1.71898186,2470.4,2470.3,4.09998355]
[1730715832092,1.71898186,2470.4,2470.3,5.54814557]
[1730715832286,1.71898186,2470.4,2470.3,4.1026229]
[1730715832987,1.01198186,2470.4,2470.3,7.26354719]
[1730715833286,1.01198186,2470.4,2470.3,13.11406828]
[1730715834186,44.0078,2470.7,2470.6,0.40506]
[1730715834187,40.8,2470.7,2470.6,0.40506]
[1730715834489,40.8,2470.7,2470.6,4.10743786]
[1730715834687,40.8,2470.7,2470.6,8.15463786]
[1730715836189,40.8,2470.7,2470.6,6.99963941]
[1730715836495,40.8,2470.7,2470.6,5.95433075]
[1730715837991,40.8,2470.7,2470.6,6.99963941]
[1730715838586,40.8,2470.7,2470.6,1.90713075]
[1730715839690,40.8,2470.7,2470.6,1.90458838]
[1730715839896,41.20504,2470.7,2470.6,0.98180168]
[1730715840191,41.20504,2470.7,2470.6,0.57674168]
[1730715840403,40.8,2470.7,2470.6,0.57674168]
[1730715840589,40.8,2470.7,2470.6,0.98188842]
[1730715840897,41.20504,2470.7,2470.6,0.98188842]
[1730715841596,40.8,2470.7,2470.6,0.98188842]
[1730715842502,41.20504,2470.7,2470.6,1.904997]
[1730715842697,41.20504,2470.7,2470.6,0.57682842]
[1730715842698,45.25224,2470.7,2470.6,0.57682842]
[1730715843091,41.20504,2470.7,2470.6,0.57682842]
[1730715843299,45.25224,2470.7,2470.2,1.04530866]
[1730715843597,40.8,2470.7,2470.3,2.54576195]
[1730715843798,1.05806,2470.6,2470.5,0.40507]
[1730715843998,1.05806,2470.6,2470.5,0.98217058]
[1730715844597,1.05806,2470.6,2470.5,0.57710058]
[1730715845507,5.10606,2470.6,2470.5,0.57710058]
[1730715846001,5.10606,2470.6,2470.1,1.567963]
[1730715846002,0.40512,2470.2,2470.1,1.04530866]
[1730715846190,0.40514,2470.1,2470.0,1.04530866]
[1730715846497,0.40514,2470.1,2470.0,0.40516]
[1730715846498,3.61294,2470.1,2470.0,0.40516]
[1730715846690,7.66174,2470.1,2470.0,0.40516]
[1730715846889,3.2078,2470.1,2470.0,0.40516]
[1730715848598,3.2078,2470.1,2469.7,1.04530866]
[1730715848599,7.2566,2470.1,2469.7,1.04530866]
[1730715848808,0.6916,2470.0,2469.8,0.91762873]
[1730715849103,1.09676,2470.0,2469.9,0.40517]
[1730715849401,0.6916,2470.0,2469.9,0.40517]
[1730715849602,3.2078,2470.1,2469.8,3.16092429]
[1730715849796,3.61294,2470.1,2470.0,0.40516]
[1730715849997,3.2078,2470.1,2470.0,0.40516]
[1730715851398,0.40514,2470.1,2470.0,0.40516]
[1730715851702,0.40512,2470.3,2469.8,4.17390429]
[1730715852006,0.40512,2470.3,2470.2,0.40512]
[1730715852607,4.45312,2470.3,2470.2,0.40512]
[1730715852909,0.40514,2470.2,2470.1,0.40513]
[1730715853408,4.048,2470.2,2469.8,3.16092429]
[1730715853605,0.40514,2470.2,2470.1,0.40513]
[1730715854006,4.45314,2470.2,2470.1,0.40513]
[1730715854899,0.40514,2470.2,2470.1,0.40513]
[1730715855201,0.40517,2470.0,2469.9,0.40516]
[1730715855406,0.40517,2470.0,2469.6,2.05835866]
[1730715855407,0.40523,2469.7,2469.6,0.40521]
[1730715855712,3.61303,2469.7,2469.6,0.40521]
[1730715856211,3.61303,2469.7,2469.4,0.40524]
[1730715856212,0.40524,2469.5,2469.4,0.40524]
[1730715856507,0.40525,2469.5,2469.4,0.40525]
[1730715856803,0.40525,2469.5,2469.1,2.05857866]
[1730715856804,0.40524,2469.6,2469.5,0.40522]
[1730715857208,4.45484,2469.6,2469.5,0.40522]
[1730715857508,44.0078,2469.7,2469.6,0.40522]
[1730715857509,44.41301,2469.7,2469.6,0.40522]
[1730715857913,48.46181,2469.7,2469.6,0.40522]
[1730715858106,44.0078,2469.7,2469.6,0.40522]
[1730715861499,44.0078,2469.7,2469.6,1.11742]
[1730715862901,0.40517,2470.0,2469.6,0.7122]
[1730715863103,3.8922,2470.1,2469.7,1.01302]
[1730715863312,4.29735,2470.1,2470.0,0.40516]
[1730715863706,8.34615,2470.1,2470.0,0.40516]
[1730715863907,3.2078,2470.7,2470.0,4.0488]
[1730715864098,3.2078,2470.7,2470.4,0.40508]
[1730715864099,0.4051,2470.5,2470.4,0.40508]
[1730715865207,2.0984,2470.6,2470.5,0.40507]
[1730715865416,6.55146,2470.6,2470.5,0.40507]
[1730715865605,47.35146,2470.6,2470.5,0.40507]
[1730715866508,46.9464,2470.6,2470.5,0.40507]
[1730715866706,47.35146,2470.6,2470.5,0.40507]
[1730715866909,46.9464,2470.6,2470.5,0.40507]
[1730715867615,47.35146,2470.6,2470.5,0.40507]
[1730715869110,46.9464,2470.6,2470.2,1.68771]
[1730715869410,0.4051,2470.5,2470.4,0.40508]
[1730715870914,4.4531,2470.5,2470.4,0.40508]
[1730715873113,3.6129,2470.5,2470.4,0.40508]
[1730715873311,7.6609,2470.5,2470.4,0.40508]
[1730715877219,4.45307,2470.5,2470.4,0.40508]
[1730715877412,4.048,2470.5,2470.4,0.40508]
[1730715877716,4.45307,2470.5,2470.4,0.40508]
[1730715889124,0.40507,2470.5,2470.4,0.40508]
[1730715903138,40.8,2470.6,2470.5,0.40507]
[1730715903436,40.8,2470.6,2470.5,1.05217]
[1730715903639,41.20506,2470.6,2470.5,1.05217]
[1730715905228,41.20506,2470.6,2470.5,1.631302]
[1730715905644,40.8,2470.6,2470.5,1.631302]
[1730715906539,40.8,2470.6,2470.5,1.6316636]
[1730715907336,40.8,2470.6,2470.5,7.13877147]
[1730715907634,40.8,2470.6,2470.5,9.22578689]
[1730715907833,40.8,2470.6,2470.5,12.2555386]
[1730715908835,40.8,2470.6,2470.5,10.6875756]
[1730715909237,40.8,2470.6,2470.5,13.39074323]
[1730715909538,3.2078,2471.0,2470.5,15.91134967]
[1730715909740,3.2078,2471.0,2470.9,1.86411787]
[1730715909934,3.61275,2471.3,2470.9,4.01420916]
[1730715910135,1.09043,2471.4,2471.3,0.40494]
[1730715910336,0.40495,2471.3,2471.2,0.40494]
[1730715910534,0.6855,2471.4,2471.3,0.40494]
[1730715910535,1.09044,2471.4,2471.3,0.40494]
[1730715910844,1.09044,2471.4,2471.3,0.98461695]
[1730715911145,41.89044,2471.4,2471.3,0.98461695]
[1730715911330,41.89044,2471.4,2471.3,0.40494]
[1730715912838,41.20494,2471.4,2471.3,0.40494]
[1730715913139,40.8,2471.4,2471.3,0.40494]
[1730715913344,41.20493,2471.4,2471.3,0.40494]
[1730715914946,40.8,2471.4,2471.3,0.40494]
[1730715922040,41.20493,2471.4,2471.3,0.40494]
[1730715922241,0.40496,2471.2,2471.0,0.6541]
[1730715922449,48.0542,2471.4,2471.0,0.40499]
[1730715922450,1.3682,2471.1,2471.0,0.40499]
[1730715922649,1.3682,2471.1,2471.0,1.86409787]
[1730715922849,42.1682,2471.1,2471.0,1.86409787]
[1730715923640,42.57318,2471.1,2471.0,1.86409787]
[1730715923842,42.1682,2471.1,2471.0,1.86409787]
[1730715924655,42.57318,2471.1,2471.0,1.86409787]
[1730715924842,42.1682,2471.1,2471.0,1.86409787]
[1730715925347,42.57318,2471.1,2471.0,1.86409787]
[1730715926250,42.1682,2471.1,2471.0,1.86409787]
[1730715927246,41.514,2471.1,2471.0,1.86409787]
[1730715929246,40.8,2471.1,2471.0,1.86409787]
[1730715929451,40.8,2471.1,2471.0,5.91129787]
[1730715929649,1.09042,2471.5,2471.4,0.40493]
[1730715929845,0.6855,2471.5,2471.4,0.40493]
[1730715930053,41.4855,2471.5,2471.4,0.40493]
[1730715930448,41.4855,2471.5,2471.4,1.86403787]
[1730715930742,40.8,2471.5,2471.4,1.86403787]
[1730715930945,40.8,2471.5,2471.4,5.91043787]
[1730715932554,40.8,2471.5,2471.4,1.86403787]
[1730715933754,40.8,2471.5,2471.4,5.91043787]
[1730715934146,40.8,2471.5,2471.4,9.11823787]
[1730715934545,0.40487,2471.8,2471.4,9.11823787]
[1730715934744,1.08535,2471.9,2471.8,0.40486]